Cogmind - Beta 13 @@@ ROGUE MODE // 2024.04.07 @ 18:12:38 Player: Lunace Result: Self-destructed Performance ------------- Evolutions (2) 1000 Regions Visited (5) 1000 Robots Destroyed (68) 340 Value Destroyed (1508) 1508 Prototype IDs (0) 0 Alien Tech Used (0) 0 Bonus (68) 68 TOTAL SCORE: 3916 Bonus ------- High Alert Combat Kills 68 Cogmind --------- Core Integrity 492/550 Matter 401/450 Energy 230/240 System Corruption 0% Temperature Cool (0) Movement Core (250) Ox4 Location -8/Materials Parts ------- > --- POWER (1) -------- Nuclear Core > --- PROPULSION (4) --- (None) > --- UTILITY (4) ------ Compact Matter Pod Structural Scanner Improved Terrain Scanner > --- WEAPON (2) ------- Shotgun > --- INVENTORY (5) ---- Medium Matter Pod (100) Medium Matter Pod (41) Compact Matter Pod (122) Light Assault Rifle Light Assault Rifle Peak State ------------ > --- POWER ------------ Improved Ion Engine > --- PROPULSION ------- Aluminum Leg Aluminum Leg > --- UTILITY ---------- Small Storage Unit Compact Matter Pod Compact Matter Pod Long-range Tractor Beam > --- WEAPON ----------- Medium Laser EMP Blaster > --- INVENTORY -------- Ion Engine Medium Laser Medium Laser EMP Blaster Signal Generator [Rating: 18] Favorites ----------- Power Improved Ion Engine Engine Improved Ion Engine Power Core Nuclear Core Propulsion Aluminum Leg Treads Light Treads Leg Aluminum Leg Flight Unit Flight Unit Utility Small Storage Unit Device Structural Scanner Storage Small Storage Unit Weapon Medium Laser Energy Gun Medium Laser Ballistic Gun Autogun Launcher Grenade Launcher Build | -11 -10 -10 -9 -9 -8 ------- Run | Yrd Mat Min Mat Min Mat Slots Evolved 4 | . . . 2 . 2 Power . | . . . . . . Propulsion 2 | . . . . . 2 Utility 2 | . . . 2 . . Weapon . | . . . . . . Parts Attached 71 | 7 22 3 31 4 4 Power 12 | 1 5 . 4 1 1 Engine 11 | 1 5 . 4 1 . Core 1 | . . . . . 1 Reactor . | . . . . . . Propulsion 15 | 2 6 . 6 1 . Treads 2 | 2 . . . . . Leg 11 | . 4 . 6 1 . Wheel . | . . . . . . Hover . | . . . . . . Flight 2 | . 2 . . . . Utility 15 | 2 4 . 7 . 2 Device 9 | 1 2 . 5 . 1 Storage 6 | 1 2 . 2 . 1 Processor . | . . . . . . Hackware . | . . . . . . Protection . | . . . . . . Artifact . | . . . . . . Weapon 29 | 2 7 3 14 2 1 Energy Gun 12 | 2 3 2 5 . . Energy Cannon . | . . . . . . Ballistic Gun 7 | . 3 . 1 2 1 Ballistic Cannon . | . . . . . . Launcher 10 | . 1 1 8 . . Special Weapon . | . . . . . . Impact Weapon . | . . . . . . Slashing Weapon . | . . . . . . Piercing Weapon . | . . . . . . Special Melee Weapon . | . . . . . . Unidentified Prototypes . | . . . . . . Corrupted Parts 2 | . . . 2 . . System Corruption 11 | . . . 11 . . Parts Lost 22 | . 6 . 10 2 4 Power 1 | . 1 . . . . Propulsion 7 | . 2 . 2 1 2 Utility 6 | . 1 . 4 . 1 Weapon 8 | . 2 . 4 1 1 Highest Loss Streak 6 | . 6 . 2 2 2 To Critical Strikes . | . . . . . . Average Slot Usage (%) 92 | . 93 100 91 98 75 Engine 11 | . 12 14 10 11 7 Treads 3 | . 12 . . . . Leg 18 | . 12 28 18 21 15 Device 15 | . 11 14 15 22 15 Storage 19 | . 13 14 25 22 18 Energy Gun 10 | . 13 7 14 . . Ballistic Gun 6 | . 7 . . 16 17 Launcher 6 | . 5 20 5 4 . Naked Turns . | . . . . . . Heaviest Build 26 | 15 16 17 23 23 26 Greatest Support 40 | 40 40 20 23 23 23 Greatest Overweight (x) 8 | . 2 . 6 . 8 Average Overweight (x) . | . . . . . . Largest Inventory Capacity 15 | 8 15 8 8 8 10 Average Capacity 8 | 7 8 8 8 8 8 Most Carried 8 | 5 8 8 8 8 8 Average Carried 6 | 1 6 7 5 7 6 Final Capacity 8 | 8 8 8 8 8 5 Final Carried 8 | 2 7 8 8 7 5 Class Distribution -------------------- 97% | Mutant Dominant Class ---------------- Mutant | -10/Materials Mutant | -10/Mines Mutant | -9/Materials Mutant | -9/Mines Mutant | -8/Materials Resources | -11 -10 -10 -9 -9 -8 ----------- Run | Yrd Mat Min Mat Min Mat Matter Collected 1946 | 224 342 237 632 434 77 Remotely 187 | . . . 187 . . Salvage Created 1947 | 21 342 248 933 295 108 Parts 124 | 1 16 22 57 24 4 Haulers Intercepted . | . . . . . . Recyclers Shooed 3 | . 1 . . . 2 Parts Field Recycled . | . . . . . . Retrieved Matter . | . . . . . . Parts Self-Destructed . | . . . . . . Prevented . | . . . . . . Kills | -11 -10 -10 -9 -9 -8 ------- Run | Yrd Mat Min Mat Min Mat Combat Hostiles Destroyed 61 | . 10 9 25 14 3 Guns 32 | . 9 3 11 6 3 AOE 26 | . . 6 13 7 . Classes Destroyed 9 | 1 2 1 4 1 . Builder 1 | . . . 1 . . Tunneler 2 | 1 . 1 . . . Recycler 2 | . . . 2 . . Mechanic 1 | . . 1 . . . Watcher 1 | . . . 1 . . Swarmer 33 | . 3 3 15 12 . Grunt 24 | . 7 6 8 1 2 Brawler 1 | . . . . 1 . Sentry 3 | . . . 2 . 1 Best Kill Streak 7 | 1 3 5 7 5 2 Combat Bots Only 6 | . 3 4 6 5 2 Max Kills in Single Turn 3 | 1 1 3 3 2 1 Gunslinging 1 | . . 1 . . . Exploded 3 | . . 3 3 2 . Melee . | . . . . . . Uniques/NPCs Destroyed . | . . . . . . Combat | -11 -10 -10 -9 -9 -8 -------- Run | Yrd Mat Min Mat Min Mat Hostile Shots Fired 297 | . 72 14 117 52 42 Missed 85 | . 10 5 35 16 19 Damage Taken 2846 | . 744 139 1085 516 362 Core 555 | . 169 13 232 83 58 Absorbed by Shields . | . . . . . . Regen/Repaired (Parts) 177 | . 59 . 118 . . Core Remaining (%) 49 | 100 . 27 . 21 . Volleys Fired 157 | 1 44 11 58 31 12 Largest 2 | 2 2 2 2 2 2 Hottest 100 | 100 100 100 100 56 46 Shots Fired 284 | 2 81 22 106 49 24 Gun 241 | 2 80 15 82 38 24 Cannon . | . . . . . . Launcher 43 | . 1 7 24 11 . Special . | . . . . . . Kinetic 76 | . 14 . . 38 24 Thermal 165 | 2 66 15 82 . . Explosive 8 | . 1 7 . . . Electromagnetic 35 | . . . 24 11 . Robot Hit Streak 18 | 1 8 4 18 5 5 Robot Miss Streak 5 | 1 5 2 3 5 5 Penetration Max . | . . . . . . Secondary Targets 4 | . 1 1 1 1 . Max Gunslinging Chain 1 | . 1 1 1 1 . Shots Hit Robots 169 | 1 51 13 68 23 13 Core Hits 97 | 1 18 15 37 18 8 Critical Kills . | . . . . . . Critical Parts Destroyed 1 | . . . . 1 . Critical Strikes 9 | . 5 1 2 1 . Burn 8 | . 5 1 2 . . Destroy 1 | . . . . 1 . Melee Attacks . | . . . . . . Impact . | . . . . . . Slashing . | . . . . . . Piercing . | . . . . . . Sneak Attacks . | . . . . . . Combat Hostiles . | . . . . . . Follow-up Attacks . | . . . . . . Damage Inflicted 3454 | 13 627 504 1511 542 257 Guns 1941 | 13 598 113 700 260 257 Cannons . | . . . . . . Explosions 1513 | . 29 391 811 282 . Melee . | . . . . . . Ramming . | . . . . . . Kinetic 614 | . 97 . . 260 257 Thermal 1475 | 13 501 113 779 69 . Explosive 420 | . 29 391 . . . Electromagnetic 945 | . . . 732 213 . Impact . | . . . . . . Slashing . | . . . . . . Piercing . | . . . . . . Highest Corruption 13 | . . . 13 13 . Average Corruption 12 | . . . 12 13 . Corruption Purged . | . . . . . . Corruption Blocked . | . . . . . . Effects 44 | . . . 27 17 . Message Errors 3 | . . . 2 1 . Matter Fused 15 | . . . 9 6 . Heat Flow Errors 4 | . . . 2 2 . Energy Discharges 5 | . . . 4 1 . Parts Rejected 1 | . . . 1 . . Data Loss (minor) 4 | . . . 2 2 . Data Loss (major) 2 | . . . 2 . . Misfires 3 | . . . 2 1 . Alerts 1 | . . . . 1 . Weapon Failures 6 | . . . 3 3 . Overload Shots . | . . . . . . Overflow Damage 33 | . . 1 16 16 . Projectiles . | . . . . . . Explosions 33 | . . 1 16 16 . Melee . | . . . . . . Knockbacks . | . . . . . . Impact . | . . . . . . Kinetic . | . . . . . . Secondary . | . . . . . . Self-Inflicted Damage 447 | . 32 54 227 134 . Shots 25 | . 1 3 14 7 . Rammed . | . . . . . . Targets Rammed . | . . . . . . Kicked . | . . . . . . Crushed . | . . . . . . Highest Temperature 558 | 39 558 234 272 204 30 Average Temperature 146 | 20 246 84 75 109 13 Received Heat Transfer 693 | . 297 15 204 6 171 Effects 15 | . 15 . . . . Shutdowns 4 | . 4 . . . . Energy Bleed 1 | . 1 . . . . Interference 1 | . 1 . . . . Matter Decay 2 | . 2 . . . . Short Circuit 2 | . 2 . . . . Damage (minor) 2 | . 2 . . . . Damage (major) 2 | . 2 . . . . Damage (core) 1 | . 1 . . . . Siege Activations . | . . . . . . Robots Corrupted 1 | . . . . 1 . Combat Hostiles 1 | . . . . 1 . Parts Fried 3 | . . . 2 1 . Impact Corruptions . | . . . . . . Robots Melted 2 | . 1 . 1 . . Combat Hostiles 2 | . 1 . 1 . . Parts Melted 11 | . 3 . 8 . . Heat Transferred 4714 | 37 1850 407 2370 50 . Parts Sabotaged . | . . . . . . Parts Stolen . | . . . . . . Parts Stripped . | . . . . . . Power Chain Reactions 7 | . . . 4 3 . Alert | -11 -10 -10 -9 -9 -8 ------- Run | Yrd Mat Min Mat Min Mat Peak Influence 703 | 5 271 261 703 505 281 Initial 196 | . 3 35 101 112 196 Average 251 | 1 107 154 385 363 232 Maximum Alert Level 3 | . 1 1 3 2 1 Low Security (%) 47 | 100 84 93 12 17 29 Level 1 31 | . 15 6 48 27 70 Level 2 20 | . . . 37 55 . Level 3 . | . . . 2 . . Level 4 . | . . . . . . Level 5 . | . . . . . . High Security . | . . . . . . Max Security . | . . . . . . Squads Dispatched 8 | . 1 1 4 . 2 Investigation 3 | . 1 . 2 . . Extermination . | . . . . . . Reinforcement 3 | . . . 1 . 2 Assault 2 | . . 1 1 . . Garrison . | . . . . . . Intercept . | . . . . . . Searches Triggered . | . . . . . . Construction Impeded 2 | . . . 1 . 1 Haulers Reinforced . | . . . . . . Active Scanning Responses . | . . . . . . Cargo Convoy Interrupts . | . . . . . . Stealth | -11 -10 -10 -9 -9 -8 --------- Run | Yrd Mat Min Mat Min Mat Distress Signals 3 | . . . 2 . 1 Communications Jammed . | . . . . . . Distress Signals . | . . . . . . Times Spotted 84 | . 16 9 33 20 6 Peak Tracking Total 6 | . 4 4 6 5 3 Tactical Retreats 8 | . 2 . 4 2 . Traps | -11 -10 -10 -9 -9 -8 ------- Run | Yrd Mat Min Mat Min Mat Traps Triggered 3 | . 1 . 1 . 1 Indirectly . | . . . . . . Trap Hack Attempts . | . . . . . . Triggered . | . . . . . . Disarmed . | . . . . . . Reprogrammed . | . . . . . . Reused 3 | . . . . 1 2 Traps Extracted . | . . . . . . Installed 4 | . . . . 1 3 Triggered 4 | . . . . 2 2 Most Traps Carried 4 | . . . . 4 3 Machines | -11 -10 -10 -9 -9 -8 ---------- Run | Yrd Mat Min Mat Min Mat Machines Disabled 4 | . . . 3 1 . Max in Single Turn 1 | . . . 1 1 . Machines Repaired . | . . . . . . Machines Dismantled . | . . . . . . Machines Sabotaged . | . . . . . . Overloaded Fab Kills . | . . . . . . Hacking | -11 -10 -10 -9 -9 -8 --------- Run | Yrd Mat Min Mat Min Mat Machines Accessed 11 | . 5 . 6 . . Terminals 6 | . 3 . 3 . . Fabricators . | . . . . . . Repair Stations 3 | . 1 . 2 . . Recycling Units 2 | . 1 . 1 . . Scanalyzers . | . . . . . . Garrison Access . | . . . . . . Total Hacks 29 | . 13 . 16 . . Successful 13 | . 7 . 6 . . Failed 16 | . 6 . 10 . . Catastrophic 4 | . 1 . 3 . . Database Lockouts . | . . . . . . Manual 11 | . 4 . 7 . . Terminals 15 | . 6 . 9 . . Fabricators . | . . . . . . Repair Stations 8 | . 4 . 4 . . Recycling Units 6 | . 3 . 3 . . Scanalyzers . | . . . . . . Garrison Access . | . . . . . . Terminal Hacks 2 | . 1 . 1 . . Branch Access Points 1 | . 1 . . . . Unreport Threat 1 | . . . 1 . . Fabricator Hacks . | . . . . . . Repair Station Hacks 8 | . 4 . 4 . . Scan Component 4 | . 2 . 2 . . Repair 4 | . 2 . 2 . . Recycling Unit Hacks 3 | . 2 . 1 . . Report Inventory 2 | . 1 . 1 . . Retrieve Components 1 | . 1 . . . . Scanalyzer . | . . . . . . Garrison Access Hacks . | . . . . . . Unauthorized Hacks . | . . . . . . Terminals . | . . . . . . Fabricators . | . . . . . . Repair Stations . | . . . . . . Recycling Units . | . . . . . . Scanalyzers . | . . . . . . Garrison Access . | . . . . . . Data Cores Recovered . | . . . . . . Used . | . . . . . . Hacking Detections 9 | . 3 . 6 . . Full Trace Events 2 | . 1 . 1 . . Feedback Events . | . . . . . . Feedback Blocked . | . . . . . . Robot Schematics Acquired . | . . . . . . Robots Built . | . . . . . . Authchips . | . . . . . . Time . | . . . . . . Total Robot Build Rating . | . . . . . . Part Schematics Acquired . | . . . . . . Parts Built . | . . . . . . Authchips . | . . . . . . Time . | . . . . . . Total Part Build Rating . | . . . . . . Parts Repaired 4 | . 2 . 2 . . Time 116 | . 52 . 64 . . Parts Recycled . | . . . . . . Recycled Matter . | . . . . . . Retrieved Matter . | . . . . . . Retrieved Components 9 | . 9 . . . . Parts Scanalyzed . | . . . . . . Part Schematics Acquired . | . . . . . . Parts Damaged . | . . . . . . Bothacking | -11 -10 -10 -9 -9 -8 ------------ Run | Yrd Mat Min Mat Min Mat Used RIF Installer . | . . . . . . Robots Hacked . | . . . . . . Non-combat . | . . . . . . Combat . | . . . . . . Robot Hacks Applied . | . . . . . . Relay Couplers Released . | . . . . . . Fabnet Peak Effective % . | . . . . . . Robots Rewired . | . . . . . . Allies Hacked . | . . . . . . Hacks Repelled . | . . . . . . Allies | -11 -10 -10 -9 -9 -8 -------- Run | Yrd Mat Min Mat Min Mat Total Allies 1 | . . 1 . . . Largest Group 1 | . . 1 . . . Highest-Rated Group 31 | . . 31 . . . Highest-Rated Ally 31 | . . 31 . . . Total Orders . | . . . . . . Ally Attacks 4 | . . 4 . . . Total Damage 84 | . . 84 . . . Kills . | . . . . . . Allies Corrupted . | . . . . . . Allies Melted . | . . . . . . Intel | -11 -10 -10 -9 -9 -8 ------- Run | Yrd Mat Min Mat Min Mat Robot Analysis Total . | . . . . . . Derelict Logs Recovered 2 | . . 2 . . . Drone Launches . | . . . . . . Drone Recoveries . | . . . . . . Exploration | -11 -10 -10 -9 -9 -8 ------------- Run | Yrd Mat Min Mat Min Mat Turns Passed 2853 | 109 766 351 1000 377 250 Spaces Moved 1608 | 63 443 249 483 236 134 Core 40 | 11 3 . 24 . 2 Treads 189 | 52 137 . . . . Legs 1288 | . 212 249 459 236 132 Wheels . | . . . . . . Hover . | . . . . . . Flight 91 | . 91 . . . . Fastest Speed 37 | 50 37 120 120 120 120 Average Speed 129 | 140 115 120 146 120 140 Slowest Speed 450 | 160 160 120 350 120 450 Overloaded Moves . | . . . . . . Propulsion Burnouts . | . . . . . . Robots Hopped 2 | . 2 . . . . Cave-ins Triggered . | . . . . . . Exploration Rate (%) 41 | 4 77 46 53 52 14 Regions Visited 5 Branch Regions 2 Pre-discovered Areas . | . . . . . . Known Exits Taken 1 | . 1 . . . . Unknown Exits Taken 4 | 1 . 1 1 1 . Scrap Searched . | . . . . . . Spaces Dug . | . . . . . . Terrain Destroyed 68 | . 3 34 16 15 . Melee . | . . . . . . Projectile . | . . . . . . AOE 68 | . 3 34 16 15 . Terrain Rammed . | . . . . . . Walls Destroyed . | . . . . . . Machines Disabled . | . . . . . . Actions | -11 -10 -10 -9 -9 -8 --------- Run | Yrd Mat Min Mat Min Mat Total 2096 | 81 613 277 661 288 176 Wait 187 | 3 79 14 70 6 15 Move 1599 | 62 438 248 482 235 134 Hop 2 | . 2 . . . . Pick Up 43 | 8 17 1 11 5 1 Fast Attach 17 | 1 6 . 7 1 2 Attach 24 | 6 7 . 10 1 . Detach 5 | . 2 . 2 . 1 Swap 30 | . 9 3 14 2 2 Drop 28 | . 9 . 7 6 6 Fire 157 | 1 44 11 58 31 12 Melee . | . . . . . . Ram . | . . . . . . Kick . | . . . . . . Crush . | . . . . . . Escape Stasis . | . . . . . . Rewire . | . . . . . . Trap 4 | . . . . 1 3 Miscellaneous . | . . . . . . Route ------- -11/Scrapyard -10/Materials (discovered 3 exits: *Mat / *Min x2) -10/Mines (discovered 2 exits: *Mat x2) -9/Materials (discovered 2 exits: [*Mat] / [*Min]) -9/Mines -8/Materials History --------- Turn | Location | Event 4 | -11/Scrapyard | Discovered new exit (range 16) 110 | -11/Scrapyard | Entered Materials 301 | -10/Materials | Build established: Mutant 335 | -10/Materials | Identified exit to Mines 449 | -10/Materials | Core integrity fell below 50% 494 | -10/Materials | Lost 6 parts (1p2n1u2w) 684 | -10/Materials | Discovered new exit (range 15) 752 | -10/Materials | Repaired Aluminum Leg 781 | -10/Materials | Repaired Sml. Storage Unit 876 | -10/Materials | Entered Mines 886 | -10/Mines | Met a Derelict bent on vengeance 902 | -10/Mines | Learned Materials stockpile data 909 | -10/Mines | Discovered new exit (range 11) 912 | -10/Mines | Met a Derelict testing a Signal Generator 920 | -10/Mines | Found Signal Generator 1186 | -10/Mines | Learned Materials stockpile data 1192 | -10/Mines | Discovered new exit (range 12) 1227 | -10/Mines | Entered Materials 1227 | -9/Materials | Evolved 2 slots: Utility x2 1539 | -9/Materials | System corruption reached 10% 1667 | -9/Materials | Discovered new exit (range 8) 1881 | -9/Materials | Repaired Imp. Ion Engine 1938 | -9/Materials | Core integrity fell below 50% 2067 | -9/Materials | Repaired EMP Blaster 2183 | -9/Materials | Discovered new exit (range 7) 2227 | -9/Materials | Entered Mines 2539 | -9/Mines | Found a hidden stash of uninstalled traps 2585 | -9/Mines | Discovered new exit (range 15) 2604 | -9/Mines | Entered Materials 2604 | -8/Materials | Evolved 2 slots: Propulsion x2 2854 | -8/Materials | Self-destructed Last Messages --------------- U-05 Engineer lays Concrete. K-01 Serf collects debris. U-05 Engineer lays Concrete. W-25 Informer sends out distress signal. ALERT: Construction progress impeded, dispatching reinforcements to local area. K-01 Serf collects debris. G-47 Trooper destroyed. K-01 Serf collects debris. Dropped Imp. Ion Engine. Acquired 48 matter. Imp. Aluminum Leg destroyed. The unstable cave ceiling collapses. K-01 Serf collects debris. Triggered EMP Trap. A bubble of electromagnetic force engulfs the area. Autogun destroyed. Door malfunctions. Dropped Med. Storage Unit. Map ----- +----------------------------------------------------+ | ?????????????????## # ???/????????????????? | | ?????????????????## / ???????????????????? | | ?????????????????## # ????????????????????? | | ????????????????### # ????????#???#???????? | | ?????#???????????## # ????????????????????? | | ?????????????????## # ???????????????????? | | ???????????#?????## ###?#?????????????????? | | ???????????????#?# * ###???????????????????? | | ?????????????????# =% ######???#????????????? | | ??????????######### % #####????????????????? | | ??????????######## r !###????????????????? | | ??????????## [ # !##????????????????? | | ?????????### # !##????????????????? | | ??????????##" + !###?#?????????????? | | ??????????##T # !##??????#???#?????? | | ????#????###" # !###??#?????#???????? | | ####??????## |# ######??????#?????????? | | ############+###### #############?????????? | | ## ######### ######! *##??#########?????????? | | ## # ###### ##??## ##?????????? | | ## [[ # ###### Y######! ##?????????? | | ## [[ # ###### ##?????????? | | ## [[ + + ###????????? | | ## # ###### """ ##?????????? | | ## #" ######/####### """ ##?????????? | | ## "" ## @ ### """ ##?????????? | | ## "" ## ##########?????????? | | ###"""" [# ## * ##########?????????? | | ### " "# ## """ ##?????????????????? | | ?###### " ## ## "" """ ##????#????????????? | | ?######### ## ## "T """ ##?????????????????? | | ?????##### ## ## "" ##?????????????????? | | ????????## ## ## ##?????????????????? | | ????????## ## #############?????????????????? | | ????????## ##+###########???????????????????? | | ????????## ## ##????????????????????? | | ????????## ## ##????????????????????? | | ????????## ## ##????????????????????? | | ????????## ## ##????????????????????? | | ????????## ## ##????????????????????? | | ########## ## ##????????????????????? | | ########## ## ##????????????????????? | | # # ## ##????????????????????? | | # # ######+######????????????????????? | | # # ####????????????????????? | | # # ##??????????????????????? | | # """ + ##??????????????????????? | | # """"" # ##??????????????????????? | | # """"" ### ##??????????????????????? | | # """"" ### ##??????????????????????? | +----------------------------------------------------+ Best States ------------- Heat Dissipation 53 Energy Generation 14 Energy Capacity 265 Matter Stores 600 Matter Capacity 600 Sight Range 16 Terrain Scan Range 16 Terrain Scan Density 10 Evasion (%) 62 Recoil Reduction 2 Item Schematics ----------------- None Robot Schematics ------------------ None Fabricated ------------ Nothing Alien Tech Used ----------------- None Achievements -------------- None Challenges ------------ None Game ------ Seed SeismicScanBlaster Manual? 0 Play Time 00:28:41 Cumulative 36.4 hours Start 2024.04.07 @ 17:43:21 End 2024.04.07 @ 18:12:38 Sessions 1 Manual Loads 0 Difficulty Rogue Special Mode None Game No. 38 Rogue 33 Adventurer 5 Explorer 0 Win Type - Total 1 Types 1/0/0/0/0/0/0/0/0 Lore% 20 Gallery% 36 Achievement% 29 Wizard Run 0 Options --------- Layout 1 ASCII 0 Keyboard 0 Movement Mouse Keybinds 0 Fullscreen 1 Font 24/Terminus Map View 50x35 Zoom Use 0% Tactical HUD 0 Map Filters NONE Filters NONE Steam 1 RUN: f85e6d04-8ef5-4756-b586-2da02808e588